Cogmind - Beta 13 @@@ ROGUE MODE // 2024.06.12 @ 22:39:27 Player: ZergFTW Result: Self-destructed Performance ------------- Evolutions (1) 500 Regions Visited (2) 400 Robots Destroyed (40) 200 Value Destroyed (664) 664 Prototype IDs (0) 0 Alien Tech Used (0) 0 Bonus (16) 16 TOTAL SCORE: 1780 Bonus ------- High Alert Combat Kills 16 Cogmind --------- Core Integrity 231/400 Matter 294/300 Energy 100/100 System Corruption 0% Temperature Cool (2) Movement Core (50) Location -9/Materials Parts ------- > --- POWER (1) -------- (None) > --- PROPULSION (3) --- (None) > --- UTILITY (3) ------ Signal Interpreter > --- WEAPON (2) ------- (None) > --- INVENTORY (5) ---- Structural Scanner Sensor Array Hacking Suite Peak State ------------ > --- POWER ------------ Light Ion Engine > --- PROPULSION ------- VTOL Module VTOL Module > --- UTILITY ---------- Structural Scanner Signal Interpreter > --- WEAPON ----------- Small Laser Light Assault Rifle > --- INVENTORY -------- VTOL Module VTOL Module Visual Processing Unit Sensor Array Hacking Suite [Rating: 10] Favorites ----------- Power Light Ion Engine Engine Light Ion Engine Propulsion Hover Unit Wheel Wheel Hover Unit Hover Unit Flight Unit Flight Unit Utility Structural Scanner Device Structural Scanner Storage Small Storage Unit Processor Signal Interpreter Weapon EM Pulse Gun Energy Gun EM Pulse Gun Ballistic Gun Light Assault Rifle Special Weapon Mining Laser Build | -11 -10 -9 ------- Run | Yrd Mat Mat Slots Evolved 2 | . . 2 Power . | . . . Propulsion 1 | . . 1 Utility 1 | . . 1 Weapon . | . . . Parts Attached 59 | 8 45 6 Power 5 | 1 4 . Engine 5 | 1 4 . Core . | . . . Reactor . | . . . Propulsion 12 | 2 10 . Treads . | . . . Leg . | . . . Wheel 3 | 2 1 . Hover 5 | . 5 . Flight 4 | . 4 . Utility 11 | 2 9 . Device 6 | 1 5 . Storage 2 | 1 1 . Processor 3 | . 3 . Hackware . | . . . Protection . | . . . Artifact . | . . . Weapon 31 | 3 22 6 Energy Gun 18 | 2 13 3 Energy Cannon . | . . . Ballistic Gun 1 | . 1 . Ballistic Cannon . | . . . Launcher . | . . . Special Weapon 12 | 1 8 3 Impact Weapon . | . . . Slashing Weapon . | . . . Piercing Weapon . | . . . Special Melee Weapon . | . . . Unidentified Prototypes . | . . . Parts Lost 12 | . 5 7 Power 2 | . 1 1 Propulsion 3 | . 1 2 Utility . | . . . Weapon 7 | . 3 4 Highest Loss Streak 7 | . 3 7 To Critical Strikes . | . . . Average Slot Usage (%) 94 | . 96 70 Engine 13 | . 13 10 Wheel 2 | . 3 . Hover 17 | . 17 18 Flight 5 | . 5 . Device 14 | . 15 11 Processor 11 | . 11 11 Energy Gun 15 | . 15 16 Ballistic Gun 5 | . 6 . Special Weapon 5 | . 5 3 Naked Turns . | . . . Heaviest Build 12 | 12 12 9 Greatest Support 20 | 20 20 12 Greatest Overweight (x) 2 | 1 1 2 Average Overweight (x) . | . . . Largest Inventory Capacity 8 | 8 8 5 Average Capacity 5 | 7 5 5 Most Carried 6 | 6 6 5 Average Carried 4 | 3 4 4 Final Capacity 8 | 8 5 5 Final Carried 5 | 4 5 3 Class Distribution -------------------- 65% | Scavenger-Mutant 27% | Mutant 6% | Scavenger-Sprinter Dominant Class ---------------- Scavenger-Mutant | -10/Materials Scavenger-Mutant | -9/Materials Resources | -11 -10 -9 ----------- Run | Yrd Mat Mat Matter Collected 848 | 280 549 19 Remotely . | . . . Salvage Created 1016 | 147 837 32 Parts 85 | 11 69 5 Haulers Intercepted . | . . . Recyclers Shooed 3 | . 3 . Parts Field Recycled . | . . . Retrieved Matter . | . . . Parts Self-Destructed . | . . . Prevented . | . . . Kills | -11 -10 -9 ------- Run | Yrd Mat Mat Combat Hostiles Destroyed 19 | . 17 2 Guns 16 | . 14 2 Cannons 3 | . 3 . Classes Destroyed 9 | 2 7 . Worker 1 | . 1 . Builder 4 | . 4 . Tunneler 6 | 3 3 . Recycler 2 | 1 1 . Mechanic 1 | . 1 . Operator 4 | . 4 . Watcher 3 | . 3 . Swarmer 8 | . 6 2 Grunt 11 | . 11 . Best Kill Streak 4 | 4 4 2 Combat Bots Only 3 | . 3 2 Max Kills in Single Turn 1 | 1 1 1 Gunslinging . | . . . Exploded . | . . . Melee . | . . . Uniques/NPCs Destroyed . | . . . Combat | -11 -10 -9 -------- Run | Yrd Mat Mat Hostile Shots Fired 135 | . 92 43 Missed 31 | . 22 9 Damage Taken 1104 | . 711 393 Core 345 | . 176 169 Absorbed by Shields . | . . . Regen/Repaired (Parts) 58 | . 58 . Core Remaining (%) 64 | 100 29 . Volleys Fired 164 | 15 139 10 Largest 2 | 2 2 2 Hottest 150 | 90 150 140 Shots Fired 255 | 30 213 12 Gun 219 | 30 181 8 Cannon . | . . . Launcher . | . . . Special 36 | . 32 4 Kinetic 74 | . 74 . Thermal 125 | 30 90 5 Explosive . | . . . Electromagnetic 56 | . 49 7 Robot Hit Streak 9 | 4 9 5 Robot Miss Streak 12 | 3 12 1 Penetration Max . | . . . Secondary Targets 1 | . 1 . Max Gunslinging Chain 1 | . 1 . Shots Hit Robots 121 | 14 100 7 Core Hits 63 | 5 55 3 Critical Kills . | . . . Critical Parts Destroyed . | . . . Critical Strikes 2 | . 2 . Burn 2 | . 2 . Melee Attacks . | . . . Impact . | . . . Slashing . | . . . Piercing . | . . . Sneak Attacks . | . . . Combat Hostiles . | . . . Follow-up Attacks . | . . . Damage Inflicted 1594 | 161 1343 90 Guns 1334 | 161 1107 66 Cannons . | . . . Explosions 44 | . 44 . Melee . | . . . Ramming . | . . . Kinetic 271 | . 271 . Thermal 832 | 161 636 35 Explosive . | . . . Electromagnetic 491 | . 436 55 Impact . | . . . Slashing . | . . . Piercing . | . . . Highest Corruption 2 | . 2 . Average Corruption 2 | . 2 . Corruption Purged . | . . . Corruption Blocked . | . . . Overload Shots . | . . . Overflow Damage 2 | . 2 . Projectiles . | . . . Explosions 2 | . 2 . Melee . | . . . Knockbacks . | . . . Impact . | . . . Kinetic . | . . . Secondary . | . . . Self-Inflicted Damage 25 | . 25 . Shots 1 | . 1 . Rammed . | . . . Targets Rammed . | . . . Kicked . | . . . Crushed . | . . . Highest Temperature 340 | 180 340 32 Average Temperature 65 | 89 64 14 Received Heat Transfer 258 | . 234 24 Effects 2 | . 2 . Energy Bleed 1 | . 1 . Interference 1 | . 1 . Siege Activations . | . . . Robots Corrupted . | . . . Combat Hostiles . | . . . Parts Fried . | . . . Impact Corruptions . | . . . Robots Melted . | . . . Combat Hostiles . | . . . Parts Melted 1 | 1 . . Heat Transferred 2163 | 410 1678 75 Parts Sabotaged . | . . . Parts Stolen . | . . . Parts Stripped . | . . . Power Chain Reactions 1 | . 1 . Alert | -11 -10 -9 ------- Run | Yrd Mat Mat Peak Influence 538 | 20 538 192 Initial 170 | . 13 170 Average 291 | 8 322 171 Maximum Alert Level 2 | . 2 . Low Security (%) 28 | 100 16 100 Level 1 53 | . 61 . Level 2 18 | . 21 . Level 3 . | . . . Level 4 . | . . . Level 5 . | . . . High Security . | . . . Max Security . | . . . Squads Dispatched 6 | . 6 . Investigation 3 | . 3 . Extermination . | . . . Reinforcement 3 | . 3 . Assault . | . . . Garrison . | . . . Intercept . | . . . Searches Triggered . | . . . Construction Impeded . | . . . Haulers Reinforced . | . . . Active Scanning Responses . | . . . Cargo Convoy Interrupts . | . . . Stealth | -11 -10 -9 --------- Run | Yrd Mat Mat Distress Signals 2 | . 2 . Communications Jammed . | . . . Distress Signals . | . . . Times Spotted 51 | . 40 11 Peak Tracking Total 8 | . 4 8 Tactical Retreats 6 | . 6 . Traps | -11 -10 -9 ------- Run | Yrd Mat Mat Traps Triggered 1 | . 1 . Indirectly . | . . . Trap Hack Attempts . | . . . Triggered . | . . . Disarmed . | . . . Reprogrammed . | . . . Reused . | . . . Traps Extracted . | . . . Installed . | . . . Triggered . | . . . Machines | -11 -10 -9 ---------- Run | Yrd Mat Mat Machines Disabled 1 | . 1 . Max in Single Turn 1 | . 1 . Machines Repaired . | . . . Machines Dismantled . | . . . Machines Sabotaged . | . . . Overloaded Fab Kills . | . . . Hacking | -11 -10 -9 --------- Run | Yrd Mat Mat Machines Accessed 3 | . 3 . Terminals 1 | . 1 . Fabricators . | . . . Repair Stations 1 | . 1 . Recycling Units 1 | . 1 . Scanalyzers . | . . . Garrison Access . | . . . Total Hacks 21 | . 21 . Successful 14 | . 14 . Failed 7 | . 7 . Catastrophic . | . . . Database Lockouts . | . . . Manual . | . . . Terminals 4 | . 4 . Fabricators . | . . . Repair Stations 12 | . 12 . Recycling Units 5 | . 5 . Scanalyzers . | . . . Garrison Access . | . . . Terminal Hacks 2 | . 2 . Alert Level 1 | . 1 . Unreport Threat 1 | . 1 . Fabricator Hacks . | . . . Repair Station Hacks 10 | . 10 . Scan Component 5 | . 5 . Repair 5 | . 5 . Recycling Unit Hacks 2 | . 2 . Report Inventory 2 | . 2 . Scanalyzer . | . . . Garrison Access Hacks . | . . . Unauthorized Hacks . | . . . Terminals . | . . . Fabricators . | . . . Repair Stations . | . . . Recycling Units . | . . . Scanalyzers . | . . . Garrison Access . | . . . Data Cores Recovered 1 | . 1 . Used 1 | . 1 . Hacking Detections 3 | . 3 . Full Trace Events 3 | . 3 . Feedback Events . | . . . Feedback Blocked . | . . . Robot Schematics Acquired . | . . . Robots Built . | . . . Authchips . | . . . Time . | . . . Total Robot Build Rating . | . . . Part Schematics Acquired . | . . . Parts Built . | . . . Authchips . | . . . Time . | . . . Total Part Build Rating . | . . . Parts Repaired 5 | . 5 . Time 140 | . 140 . Parts Recycled . | . . . Recycled Matter . | . . . Retrieved Matter . | . . . Retrieved Components . | . . . Parts Scanalyzed . | . . . Part Schematics Acquired . | . . . Parts Damaged . | . . . Bothacking | -11 -10 -9 ------------ Run | Yrd Mat Mat Used RIF Installer . | . . . Robots Hacked . | . . . Non-combat . | . . . Combat . | . . . Robot Hacks Applied . | . . . Relay Couplers Released . | . . . Fabnet Peak Effective % . | . . . Robots Rewired . | . . . Allies Hacked . | . . . Hacks Repelled . | . . . Allies | -11 -10 -9 -------- Run | Yrd Mat Mat Total Allies . | . . . Largest Group . | . . . Highest-Rated Group . | . . . Highest-Rated Ally . | . . . Total Orders . | . . . Ally Attacks . | . . . Total Damage . | . . . Kills . | . . . Allies Corrupted . | . . . Allies Melted . | . . . Intel | -11 -10 -9 ------- Run | Yrd Mat Mat Robot Analysis Total . | . . . Derelict Logs Recovered . | . . . Drone Launches . | . . . Drone Recoveries . | . . . Exploration | -11 -10 -9 ------------- Run | Yrd Mat Mat Turns Passed 1840 | 114 1577 149 Spaces Moved 1661 | 60 1463 138 Core 15 | 13 . 2 Treads . | . . . Legs . | . . . Wheels 125 | 47 78 . Hover 1067 | . 931 136 Flight 454 | . 454 . Fastest Speed 32 | 50 32 56 Average Speed 57 | 81 56 57 Slowest Speed 150 | 95 125 150 Overloaded Moves . | . . . Propulsion Burnouts . | . . . Robots Hopped 5 | . 5 . Cave-ins Triggered . | . . . Exploration Rate (%) 35 | 6 91 10 Regions Visited 2 Branch Regions . Pre-discovered Areas . | . . . Known Exits Taken 1 | . 1 . Unknown Exits Taken 1 | 1 . . Scrap Searched . | . . . Spaces Dug 17 | . 15 2 Terrain Destroyed 25 | . 23 2 Melee . | . . . Projectile 22 | . 20 2 AOE 3 | . 3 . Terrain Rammed . | . . . Walls Destroyed . | . . . Machines Disabled . | . . . Actions | -11 -10 -9 --------- Run | Yrd Mat Mat Total 2232 | 95 1952 185 Wait 280 | . 249 31 Move 1649 | 59 1452 138 Hop 5 | . 5 . Pick Up 42 | 11 31 . Fast Attach 8 | 2 6 . Attach 18 | 6 10 2 Detach 1 | . 1 . Swap 33 | . 29 4 Drop 32 | 2 30 . Fire 164 | 15 139 10 Melee . | . . . Ram . | . . . Kick . | . . . Crush . | . . . Escape Stasis . | . . . Rewire . | . . . Trap . | . . . Miscellaneous . | . . . Route ------- -11/Scrapyard -10/Materials (discovered 6 exits: *Mat x3 / *Min x2 / *Sub) -9/Materials (discovered 1 exit: *Sto) History --------- Turn | Location | Event 18 | -11/Scrapyard | Discovered new exit (range 15) 115 | -11/Scrapyard | Entered Materials 299 | -10/Materials | Core integrity fell below 50% 303 | -10/Materials | Discovered new exit (range 7) 437 | -10/Materials | Identified exit to Mines 476 | -10/Materials | Build established: Scavenger-Mutant 528 | -10/Materials | Discovered new exit (range 7) 530 | -10/Materials | Identified exit to Materials 538 | -10/Materials | Discovered exit to Mines (range 13) 1192 | -10/Materials | Repaired Structural Scanner 1219 | -10/Materials | Repaired Hover Unit 1246 | -10/Materials | Repaired EM Pulse Gun 1273 | -10/Materials | Repaired Structural Scanner 1296 | -10/Materials | Discovered exit to Materials (range 4) 1314 | -10/Materials | Discovered new exit (range 9) 1330 | -10/Materials | Identified exit to Subcaves 1347 | -10/Materials | Discovered exit to Materials (range 16) 1534 | -10/Materials | Repaired Corrupted Hover Unit 1592 | -10/Materials | Lost 3 parts (1n2w) 1692 | -10/Materials | Entered another Materials area 1692 | -9/Materials | Evolved 2 slots: Propulsion x1, Utility x1 1692 | -9/Materials | Discovered new exit (range 7) 1696 | -9/Materials | Identified exit to Storage 1841 | -9/Materials | Self-destructed Last Messages --------------- 01686_ U-05 Engineer builds a Wall. PARAMETERS=PROPULSION+1,UTILITY+1 LOCATION=MATERIALS GOAL=ESCAPE 01692_ EXIT=FOUND 01696_ EXIT=IDENTIFIED: STORAGE 01796_ K-01 Serf collects debris. 01815_ C-30 ARC bursts open, deploying its payload. 01815_ S-10 Pest unfolds itself. 01817_ S-10 Pest destroyed. 01819_ Hover Unit destroyed. 01823_ Mining Laser destroyed. 01824_ S-10 Pest destroyed. 01826_ Acquired 19 matter. 01829_ U-05 Engineer builds a Wall. 01833_ EM Pulse Gun destroyed. 01834_ Sml. Laser destroyed. 01838_ Mining Laser destroyed. 01838_ Ion Engine destroyed. 01841_ Structural Scanner severed. Map ----- +----------------------------------------------------+ | ????????????????????????????????????????????? | | ????????????????????????????????????????????? | | ????????????????????????????????????????????? | | ????????????????????????????????????????????? | | ????????????????????????????????????????????? | | ????????????????????????????????????????????? | | ????????????????????????????????????????????? | | ????????????????????????????????????????????? | | ????????????????????????????????????????????? | | ????????????????????????????????????????????? | | ????????????????????????????????????????????? | | ????????????????????????????????????????????? | | ???????????????????####?????????????????????? | | ???????????????????####?????????????????????? | | ??????????????????? ?????????????????????? | | ????????????#### ????????????????????? | | ????????????########/## ????????????????????? | | ????????????## YY ##????????????????????? | | ????????????## a ##????????????????????? | | ????????????## r##????????????????????? | | ????????????## ##????????????????????? | | ????????????## ##????????????????????? | | ????????????## *** # ????????????????????? | | ????????????## *s**# ????????????????????? | | ????????????## **s[# ????????????????????? | | ??????######## ==l@%# ????????????????????? | | ??????##################????????????????????? | | ??????## #######????????????????????? | | ??????## """"""" ##?????????????????????????? | | ??????## """"""" ##?????????????????????????? | | ??????## """"""" ##?????????????????????????? | | ??????## """"""" ##?????????????????????????? | | ??????## """"""" ##?????????????????????????? | | ??????## #### ???????????????????? | | ??????##= #################??????????? | | ??????########+### ###########??????????? | | ??????##### # = ??????????? | | ?????????## > # ??????????? | | ?????????## # """ """ # ????? ?? | | ???????#### ### # """ """ / ??" | | ???????## #### ## """ """ # ???"" | | ???????##! !#### ## # ? | | ???????###!!!!##### ## # ?? | | ???????############ ############# """ ??? | | ????????########?## """ ??? | | ?????????????????## """ ??? | | ?????????????????## | | ?????????????????## ############# | | ?????????????????## # ## """ | | ?????????????????## # """ ##?????? """ ? | +----------------------------------------------------+ Best States ------------- Heat Dissipation 28 Energy Generation 10 Energy Capacity 250 Matter Stores 300 Matter Capacity 300 Sight Range 16 Terrain Scan Density 10 Evasion (%) 63 Item Schematics ----------------- None Robot Schematics ------------------ None Fabricated ------------ Nothing Alien Tech Used ----------------- None Achievements -------------- None Challenges ------------ None Game ------ Seed FortressBiomechanicalRigger Manual? 0 Play Time 00:43:34 Cumulative 16.4 hours Start 2024.06.12 @ 21:55:17 End 2024.06.12 @ 22:39:27 Sessions 1 Manual Loads 0 Difficulty Rogue Special Mode None Game No. 13 Rogue 12 Adventurer 1 Explorer 0 Win Type - Total 0 Types 0/0/0/0/0/0/0/0/0 Lore% 14 Gallery% 10 Achievement% 15 Wizard Run 0 Options --------- Layout 1 ASCII 0 Keyboard 0 Movement Mouse Keybinds 0 Fullscreen 2 Font 24/Proggy Map View 76x35 Zoom Use 0% Tactical HUD 1 Map Filters NONE Filters NONE Steam 1 RUN: cf4ddd38-3811-4791-9ed9-563c6d1bab7c